Workbook

Sheet Función de demanda
B1: Elasticidad Precio de la Demanda | M1: Gráfica de la Función de Demanda
B2: www.aprendizajeactivo.com.ar
B4: Dx = Qx = Constante - pendiente * Px
B6: La elasticidad precio de la demanda mide la sensibilidad de la demanda y su respuesta ante una variación en el precio.
B10: Proba de cambiar el precio y observa los cambios en la cantidad demandada y la elastidad en ese punto de la recta.
D12: Constante | F12: Pendiente | H12: Precio | J12: Cantidad:
B13: Dx = Qx = | D13: 100 | E13: - | F13: 2 | G13: * | H13: 24 | I13: = | J13: =D13-F13*H13 -> 52
H16: =H13 -> 24 | J16: Elasticidad
E17: = | F17: =F13 -> 2 | G17: * | I17: = | J17: =F13*H13/J13 -> 0.923
H18: =J13 -> 52
F23: =IF(J17<1,"Demanda Inelastica. Pocos Sustitutos Validos. Variación Porcentual menor",IF(J17=1,"Demanda unitaria. Sustitutos Validos Variación porcentual identica","Demanda Elastica Muchos Sustitutos Validos. Variación Porcentual mayor")) -> Demanda Inelastica. Pocos Sustitutos Validos. Variación Porcentual menor
B31: Dx | D31: Px
B32: =$D$13-$F$13*D32 -> 100 | D32: 0
B33: =$D$13-$F$13*D33 -> 98 | D33: 1
B34: 96 | D34: 2
B35: 94 | D35: 3
B36: 92 | D36: 4
B37: 90 | D37: 5
B38: 88 | D38: 6
B39: 86 | D39: 7
B40: 84 | D40: 8
B41: 82 | D41: 9
B42: 80 | D42: 10
B43: 78 | D43: 11 | F43: Dx | G43: Px | H43: Elasticidad
B44: 76 | D44: 12 | F44: =J13 -> 52 | G44: =H13 -> 24 | H44: =F13*G44/F44 -> 0.92
B45: 74 | D45: 13
B46: 72 | D46: 14
B47: 70 | D47: 15
B48: 68 | D48: 16
B49: 66 | D49: 17
B50: 64 | D50: 18
B51: 62 | D51: 19
B52: 60 | D52: 20
B53: 58 | D53: 21
B54: 56 | D54: 22
B55: 54 | D55: 23
B56: 52 | D56: 24
B57: 50 | D57: 25
B58: 48 | D58: 26
B59: 46 | D59: 27
B60: 44 | D60: 28
B61: 42 | D61: 29
B62: 40 | D62: 30
B63: 38 | D63: 31
B64: 36 | D64: 32
B65: 34 | D65: 33
B66: 32 | D66: 34
B67: 30 | D67: 35
B68: 28 | D68: 36
B69: 26 | D69: 37
B70: 24 | D70: 38
B71: 22 | D71: 39
B72: 20 | D72: 40
B73: 18 | D73: 41
B74: 16 | D74: 42
B75: 14 | D75: 43
B76: 12 | D76: 44
B77: 10 | D77: 45
B78: 8 | D78: 46
B79: 6 | D79: 47
B80: 4 | D80: 48
B81: 2 | D81: 49
B82: 0 | D82: 50
B83: -2 | D83: 51
B84: -4 | D84: 52
B85: -6 | D85: 53
B86: -8 | D86: 54
B87: -10 | D87: 55
B88: -12 | D88: 56
B89: -14 | D89: 57
B90: -16 | D90: 58
B91: -18 | D91: 59
B92: -20 | D92: 60
B93: -22 | D93: 61
B94: -24 | D94: 62
B95: -26 | D95: 63
B96: -28 | D96: 64
B97: =$D$13-$F$13*D97 -> -30 | D97: 65
B98: -32 | D98: 66
B99: -34 | D99: 67
B100: -36 | D100: 68
B101: -38 | D101: 69
B102: -40 | D102: 70
B103: -42 | D103: 71
B104: -44 | D104: 72
B105: -46 | D105: 73
B106: -48 | D106: 74
B107: -50 | D107: 75
B108: -52 | D108: 76
B109: -54 | D109: 77
B110: -56 | D110: 78
B111: -58 | D111: 79
B112: -60 | D112: 80
B113: -62 | D113: 81
B114: -64 | D114: 82
B115: -66 | D115: 83
B116: -68 | D116: 84
B117: -70 | D117: 85
B118: -72 | D118: 86
B119: -74 | D119: 87
B120: -76 | D120: 88
B121: -78 | D121: 89
B122: -80 | D122: 90
B123: -82 | D123: 91
B124: -84 | D124: 92
B125: -86 | D125: 93
B126: -88 | D126: 94
B127: -90 | D127: 95
B128: -92 | D128: 96
B129: -94 | D129: 97
B130: -96 | D130: 98
B131: -98 | D131: 99
B132: -100 | D132: 100
B133: -102 | D133: 101
B134: -104 | D134: 102
B135: -106 | D135: 103
B136: -108 | D136: 104
B137: -110 | D137: 105
B138: -112 | D138: 106
B139: -114 | D139: 107
B140: -116 | D140: 108
B141: -118 | D141: 109
B142: -120 | D142: 110
B143: -122 | D143: 111
B144: -124 | D144: 112
B145: -126 | D145: 113
B146: -128 | D146: 114
B147: -130 | D147: 115
B148: -132 | D148: 116
B149: -134 | D149: 117
B150: -136 | D150: 118
B151: -138 | D151: 119
B152: -140 | D152: 120
B153: -142 | D153: 121
B154: -144 | D154: 122
B155: -146 | D155: 123
B156: -148 | D156: 124
B157: -150 | D157: 125
B158: -152 | D158: 126
B159: -154 | D159: 127
B160: -156 | D160: 128
B161: =$D$13-$F$13*D161 -> -158 | D161: 129
B162: -160 | D162: 130
B163: -162 | D163: 131
B164: -164 | D164: 132
B165: -166 | D165: 133
B166: -168 | D166: 134
B167: -170 | D167: 135
B168: -172 | D168: 136
B169: -174 | D169: 137
B170: -176 | D170: 138
B171: -178 | D171: 139
B172: -180 | D172: 140
B173: -182 | D173: 141
B174: -184 | D174: 142
B175: -186 | D175: 143
B176: -188 | D176: 144
B177: -190 | D177: 145
B178: -192 | D178: 146
B179: -194 | D179: 147
B180: -196 | D180: 148
B181: -198 | D181: 149
B182: -200 | D182: 150
B183: -202 | D183: 151
B184: -204 | D184: 152
B185: -206 | D185: 153
B186: -208 | D186: 154
B187: -210 | D187: 155
B188: -212 | D188: 156
B189: -214 | D189: 157
B190: -216 | D190: 158
B191: -218 | D191: 159
B192: -220 | D192: 160
B193: -222 | D193: 161
B194: -224 | D194: 162
B195: -226 | D195: 163
B196: -228 | D196: 164
B197: -230 | D197: 165
B198: -232 | D198: 166
B199: -234 | D199: 167
B200: -236 | D200: 168
B201: -238 | D201: 169
B202: -240 | D202: 170
B203: -242 | D203: 171
B204: -244 | D204: 172
B205: -246 | D205: 173
B206: -248 | D206: 174
B207: -250 | D207: 175
B208: -252 | D208: 176
B209: -254 | D209: 177
B210: -256 | D210: 178
B211: -258 | D211: 179
B212: -260 | D212: 180
B213: -262 | D213: 181
B214: -264 | D214: 182
B215: -266 | D215: 183
B216: -268 | D216: 184
B217: -270 | D217: 185
B218: -272 | D218: 186
B219: -274 | D219: 187
... 1291 more rows
